Cogmind - Beta 13 @@@ ROGUE MODE // 2024.06.02 @ 16:31:14 Player: Sionnis Result: Destroyed by QL-U3R(R) with Subdweller Beam Cannon Performance ------------- Evolutions (0) 0 Regions Visited (3) 600 Robots Destroyed (17) 85 Value Destroyed (290) 290 Prototype IDs (0) 0 Alien Tech Used (0) 0 Bonus (0) 0 TOTAL SCORE: 975 Bonus ------- None Cogmind --------- Core Integrity 0/250 Matter 278/300 Energy 100/100 System Corruption 0% Temperature Cool (9) Movement Rolling (110) Ox2 Location -10/Subcaves Parts ------- > --- POWER (1) -------- (None) > --- PROPULSION (2) --- Wheel > --- UTILITY (2) ------ Large Storage Unit Targeting Computer > --- WEAPON (2) ------- Shotgun Shotgun > --- INVENTORY (15) --- Ion Engine Wheel Wheel Wheel Wheel Compact Wheel Signal Interpreter Shotgun Shotgun Shotgun Shotgun Subdweller Shrapnel Launcher Peak State ------------ > --- POWER ------------ Light Ion Engine > --- PROPULSION ------- Wheel Wheel > --- UTILITY ---------- Large Storage Unit Targeting Computer > --- WEAPON ----------- Shotgun Shotgun > --- INVENTORY -------- Light Ion Engine Wheel Wheel Wheel Wheel Wheel Compact Wheel Signal Interpreter Shotgun Shotgun Shotgun Shotgun Shotgun Shotgun [Rating: 11] Favorites ----------- Power Ion Engine Engine Ion Engine Propulsion Wheel Wheel Wheel Utility Large Storage Unit Storage Large Storage Unit Processor Targeting Computer Weapon Shotgun Ballistic Gun Shotgun Build | -11 -10 -10 -10 ------- Run | Yrd Mat Min Sub Slots Evolved . | . . . . Power . | . . . . Propulsion . | . . . . Utility . | . . . . Weapon . | . . . . Parts Attached 15 | 3 8 4 . Power 4 | 1 3 . . Engine 4 | 1 3 . . Core . | . . . . Reactor . | . . . . Propulsion 5 | 2 1 2 . Treads . | . . . . Leg . | . . . . Wheel 5 | 2 1 2 . Hover . | . . . . Flight . | . . . . Utility 2 | . 2 . . Device . | . . . . Storage 1 | . 1 . . Processor 1 | . 1 . . Hackware . | . . . . Protection . | . . . . Artifact . | . . . . Weapon 4 | . 2 2 . Energy Gun . | . . . . Energy Cannon . | . . . . Ballistic Gun 4 | . 2 2 . Ballistic Cannon . | . . . . Launcher . | . . . . Special Weapon . | . . . . Impact Weapon . | . . . . Slashing Weapon . | . . . . Piercing Weapon . | . . . . Special Melee Weapon . | . . . . Unidentified Prototypes . | . . . . Parts Lost 7 | . 1 4 2 Power 2 | . 1 . 1 Propulsion 3 | . . 2 1 Utility . | . . . . Weapon 2 | . . 2 . Highest Loss Streak 4 | . 1 4 2 To Critical Strikes . | . . . . Average Slot Usage (%) 95 | . 91 98 98 Engine 13 | . 12 14 12 Wheel 27 | . 28 27 28 Storage 13 | . 12 14 14 Processor 12 | . 10 14 14 Ballistic Gun 27 | . 26 27 28 Naked Turns . | . . . . Heaviest Build 31 | 3 31 31 31 Greatest Support 20 | 20 20 20 20 Greatest Overweight (x) 2 | . 1 2 1 Average Overweight (x) . | . . 1 1 Largest Inventory Capacity 15 | 5 15 15 15 Average Capacity 14 | 5 13 15 15 Most Carried 15 | . 15 15 12 Average Carried 10 | . 7 11 11 Final Capacity 15 | 5 15 15 15 Final Carried 15 | . 15 11 12 Class Distribution -------------------- 100% | Mutant Dominant Class ---------------- Mutant | -10/Materials Mutant | -10/Mines Mutant | -10/Subcaves Resources | -11 -10 -10 -10 ----------- Run | Yrd Mat Min Sub Matter Collected 621 | 134 315 172 . Remotely . | . . . . Salvage Created 590 | . 427 134 29 Parts 37 | . 31 5 1 Haulers Intercepted . | . . . . Recyclers Shooed 1 | . 1 . . Parts Field Recycled . | . . . . Retrieved Matter . | . . . . Parts Self-Destructed . | . . . . Prevented . | . . . . Kills | -11 -10 -10 -10 ------- Run | Yrd Mat Min Sub Combat Hostiles Destroyed 19 | . 7 11 1 Guns 19 | . 7 11 1 Classes Destroyed 7 | . 5 1 1 Builder 2 | . 2 . . Recycler 2 | . 2 . . Watcher 2 | . 2 . . Swarmer 6 | . 3 3 . Grunt 4 | . 4 . . Subdweller 1 | . . . 1 Assembled 8 | . . 8 . Best Kill Streak 9 | . 8 9 1 Combat Bots Only 9 | . 5 9 1 Max Kills in Single Turn 2 | . 2 1 1 Gunslinging 1 | . 1 . . Exploded . | . . . . Melee . | . . . . Uniques/NPCs Destroyed . | . . . . Combat | -11 -10 -10 -10 -------- Run | Yrd Mat Min Sub Hostile Shots Fired 100 | . 34 51 15 Missed 33 | . 13 15 5 Damage Taken 965 | . 197 513 255 Core 260 | . 44 122 94 Absorbed by Shields . | . . . . Core Remaining (%) 100 | 100 . . . Volleys Fired 41 | . 18 19 4 Largest 2 | . 2 2 2 Hottest 46 | . 46 46 46 Shots Fired 82 | . 36 38 8 Gun 82 | . 36 38 8 Cannon . | . . . . Launcher . | . . . . Special . | . . . . Kinetic 82 | . 36 38 8 Thermal . | . . . . Explosive . | . . . . Electromagnetic . | . . . . Robot Hit Streak 12 | . 8 4 12 Robot Miss Streak 7 | . 7 5 1 Penetration Max . | . . . . Secondary Targets 5 | . 3 2 . Max Gunslinging Chain 1 | . 1 1 . Shots Hit Robots 59 | . 27 25 7 Core Hits 44 | . 20 20 4 Critical Kills . | . . . . Critical Parts Destroyed . | . . . . Critical Strikes . | . . . . Melee Attacks . | . . . . Impact . | . . . . Slashing . | . . . . Piercing . | . . . . Sneak Attacks . | . . . . Combat Hostiles . | . . . . Follow-up Attacks . | . . . . Damage Inflicted 892 | . 402 360 130 Guns 892 | . 402 360 130 Cannons . | . . . . Explosions . | . . . . Melee . | . . . . Ramming . | . . . . Kinetic 892 | . 402 360 130 Thermal . | . . . . Explosive . | . . . . Electromagnetic . | . . . . Impact . | . . . . Slashing . | . . . . Piercing . | . . . . Highest Corruption . | . . . . Average Corruption . | . . . . Corruption Purged . | . . . . Corruption Blocked . | . . . . Overload Shots . | . . . . Overflow Damage . | . . . . Projectiles . | . . . . Explosions . | . . . . Melee . | . . . . Knockbacks . | . . . . Impact . | . . . . Kinetic . | . . . . Secondary . | . . . . Self-Inflicted Damage . | . . . . Shots . | . . . . Rammed . | . . . . Targets Rammed . | . . . . Kicked . | . . . . Crushed . | . . . . Highest Temperature 10 | . 3 10 . Average Temperature 2 | . 1 7 . Received Heat Transfer 141 | . 60 . 81 Siege Activations . | . . . . Robots Corrupted . | . . . . Combat Hostiles . | . . . . Parts Fried . | . . . . Impact Corruptions . | . . . . Robots Melted . | . . . . Combat Hostiles . | . . . . Parts Melted . | . . . . Heat Transferred . | . . . . Parts Sabotaged . | . . . . Parts Stolen . | . . . . Parts Stripped . | . . . . Power Chain Reactions . | . . . . Alert | -11 -10 -10 -10 ------- Run | Yrd Mat Min Sub Peak Influence 224 | . 224 157 . Initial 87 | . . 87 . Average 104 | . 88 122 . Maximum Alert Level 1 | . 1 . . Low Security (%) 94 | 100 87 100 . Level 1 5 | . 12 . . Level 2 . | . . . . Level 3 . | . . . . Level 4 . | . . . . Level 5 . | . . . . High Security . | . . . . Max Security . | . . . . Squads Dispatched 2 | . 2 . . Investigation . | . . . . Extermination . | . . . . Reinforcement 2 | . 2 . . Assault . | . . . . Garrison . | . . . . Intercept . | . . . . Searches Triggered . | . . . . Construction Impeded . | . . . . Haulers Reinforced . | . . . . Active Scanning Responses . | . . . . Cargo Convoy Interrupts . | . . . . Stealth | -11 -10 -10 -10 --------- Run | Yrd Mat Min Sub Distress Signals 2 | . 2 . . Communications Jammed . | . . . . Distress Signals . | . . . . Times Spotted 23 | . 10 9 4 Peak Tracking Total 6 | . 6 6 4 Tactical Retreats 1 | . . 1 . Traps | -11 -10 -10 -10 ------- Run | Yrd Mat Min Sub Traps Triggered . | . . . . Indirectly . | . . . . Trap Hack Attempts . | . . . . Triggered . | . . . . Disarmed . | . . . . Reprogrammed . | . . . . Reused . | . . . . Traps Extracted . | . . . . Installed . | . . . . Triggered . | . . . . Machines | -11 -10 -10 -10 ---------- Run | Yrd Mat Min Sub Machines Disabled . | . . . . Max in Single Turn . | . . . . Machines Repaired . | . . . . Machines Dismantled . | . . . . Machines Sabotaged . | . . . . Overloaded Fab Kills . | . . . . Hacking | -11 -10 -10 -10 --------- Run | Yrd Mat Min Sub Machines Accessed . | . . . . Terminals . | . . . . Fabricators . | . . . . Repair Stations . | . . . . Recycling Units . | . . . . Scanalyzers . | . . . . Garrison Access . | . . . . Total Hacks . | . . . . Successful . | . . . . Failed . | . . . . Catastrophic . | . . . . Database Lockouts . | . . . . Manual . | . . . . Terminals . | . . . . Fabricators . | . . . . Repair Stations . | . . . . Recycling Units . | . . . . Scanalyzers . | . . . . Garrison Access . | . . . . Terminal Hacks . | . . . . Fabricator Hacks . | . . . . Repair Station Hacks . | . . . . Recycling Unit Hacks . | . . . . Scanalyzer . | . . . . Garrison Access Hacks . | . . . . Unauthorized Hacks . | . . . . Terminals . | . . . . Fabricators . | . . . . Repair Stations . | . . . . Recycling Units . | . . . . Scanalyzers . | . . . . Garrison Access . | . . . . Data Cores Recovered . | . . . . Used . | . . . . Hacking Detections . | . . . . Full Trace Events . | . . . . Feedback Events . | . . . . Feedback Blocked . | . . . . Robot Schematics Acquired . | . . . . Robots Built . | . . . . Authchips . | . . . . Time . | . . . . Total Robot Build Rating . | . . . . Part Schematics Acquired . | . . . . Parts Built . | . . . . Authchips . | . . . . Time . | . . . . Total Part Build Rating . | . . . . Parts Repaired . | . . . . Time . | . . . . Parts Recycled . | . . . . Recycled Matter . | . . . . Retrieved Matter . | . . . . Retrieved Components . | . . . . Parts Scanalyzed . | . . . . Part Schematics Acquired . | . . . . Parts Damaged . | . . . . Bothacking | -11 -10 -10 -10 ------------ Run | Yrd Mat Min Sub Used RIF Installer . | . . . . Robots Hacked . | . . . . Non-combat . | . . . . Combat . | . . . . Robot Hacks Applied . | . . . . Relay Couplers Released . | . . . . Fabnet Peak Effective % . | . . . . Robots Rewired . | . . . . Allies Hacked . | . . . . Hacks Repelled . | . . . . Allies | -11 -10 -10 -10 -------- Run | Yrd Mat Min Sub Total Allies . | . . . . Largest Group . | . . . . Highest-Rated Group . | . . . . Highest-Rated Ally . | . . . . Total Orders . | . . . . Ally Attacks . | . . . . Total Damage . | . . . . Kills . | . . . . Allies Corrupted . | . . . . Allies Melted . | . . . . Intel | -11 -10 -10 -10 ------- Run | Yrd Mat Min Sub Robot Analysis Total . | . . . . Derelict Logs Recovered 1 | . . 1 . Drone Launches . | . . . . Drone Recoveries . | . . . . Exploration | -11 -10 -10 -10 ------------- Run | Yrd Mat Min Sub Turns Passed 817 | 20 301 382 114 Spaces Moved 432 | 21 224 81 106 Core 4 | 4 . . . Treads . | . . . . Legs . | . . . . Wheels 428 | 17 224 81 106 Hover . | . . . . Flight . | . . . . Fastest Speed 50 | 50 80 95 95 Average Speed 92 | 74 91 95 95 Slowest Speed 110 | 80 95 110 95 Overloaded Moves . | . . . . Propulsion Burnouts . | . . . . Robots Hopped . | . . . . Cave-ins Triggered . | . . . . Exploration Rate (%) 20 | 3 34 25 18 Regions Visited 3 Branch Regions 2 Pre-discovered Areas . | . . . . Known Exits Taken . | . . . . Unknown Exits Taken 3 | 1 1 1 . Scrap Searched 2 | . . 1 1 Spaces Dug . | . . . . Terrain Destroyed . | . . . . Melee . | . . . . Projectile . | . . . . AOE . | . . . . Terrain Rammed . | . . . . Walls Destroyed . | . . . . Machines Disabled . | . . . . Actions | -11 -10 -10 -10 --------- Run | Yrd Mat Min Sub Total 764 | 23 283 347 111 Wait 257 | . 13 244 . Move 429 | 20 223 80 106 Hop . | . . . . Pick Up 18 | . 17 . 1 Fast Attach 7 | 3 4 . . Attach 5 | . 1 4 . Detach . | . . . . Swap 3 | . 3 . . Drop 4 | . 4 . . Fire 41 | . 18 19 4 Melee . | . . . . Ram . | . . . . Kick . | . . . . Crush . | . . . . Escape Stasis . | . . . . Rewire . | . . . . Trap . | . . . . Miscellaneous . | . . . . Route ------- -11/Scrapyard -10/Materials -10/Mines -10/Subcaves History --------- Turn | Location | Event 8 | -11/Scrapyard | Discovered new exit (range 15) 21 | -11/Scrapyard | Entered Materials 126 | -10/Materials | Discovered new exit (range 9) 321 | -10/Materials | Build established: Mutant 322 | -10/Materials | Entered Mines 323 | -10/Mines | Assembled infested the area 361 | -10/Mines | Met a Derelict bent on vengeance 385 | -10/Mines | Core integrity fell below 50% 391 | -10/Mines | Destroyed 9 combat bots 419 | -10/Mines | Learned 2 Materials zone layouts 427 | -10/Mines | Lost 4 parts (2n2w) 700 | -10/Mines | Discovered new exit (range 5) 704 | -10/Mines | Entered Subcaves 804 | -10/Subcaves | A Subdweller sparked back to life 804 | -10/Subcaves | A Subdweller sparked back to life 804 | -10/Subcaves | A Subdweller sparked back to life 808 | -10/Subcaves | Core integrity fell below 20% 818 | -10/Subcaves | Destroyed by QL-U3R(R) with Subdweller Beam Cannon Last Messages --------------- 00692_ U-05 Engineer lays Concrete. 00693_ T-07 Excavator is excavating. 00700_ EXIT=FOUND LOCATION=UNKNOWN AMBIENT_HEAT=-10 GOAL=ESCAPE 00710_ Searching scrap... 00710_ Found Sub. Shrapnel Launcher. 00710_ Found 22 Matter. 00712_ Acquired Sub. Shrapnel Launcher. 00803_ Ion Engine destroyed. 00804_ QL-U3R(R) creaks and sparks as it begins to move. 00804_ 7J-FLL(R) creaks and sparks as it begins to move. 00804_ 3B-G9U(R) creaks and sparks as it begins to move. 00809_ 4M-NCF(R) destroyed. 00814_ Subatomizers dissect the Wheel. 00818_ Wheel destroyed. Map ----- +----------------------------------------------------+ | ?????????????????????????????????????????????????? | | ?????????????????????????????????????????????????? | | ???????????????????##????????????????????????????? | | ??????###??????#### #????????????????????????????? | | ?????## ####### #????????????????????????????? | | ?????? ## #??##????????????????????????? | | ??????? ### ##???????????????????????? | | ????????# #???????????????????????? | | #####??## % ##??????????????????????? | | #### ###????????????????????? | | ## ##???????????????????? | | % ##??????????????????? | | #??????????????????? | | % % #???????????????????? | | %#???????????????????? | | ## ### ##???##?????????????? | | ########% % " #?? ##????????????? | | ##?????## & " ## % #????????????? | | ###### ## ##?????## % #?????????????? | | ?????######??????# " & #?????????????? | | ?????????????????# " "# #?????????????? | | ?????????????????# #??????????????? | | ?????????????????##### % #???????????????? | | ?????????????????????##R]#### ##???????????????? | | ?????????????????????##RR##??? #?????????????????? | | ?????????????????????# @#????#?????????????????? | | ?????????????????????# #?????????????????????? | | ??????????????????? #????????????????????? | | ?????????????????# % %???????????????????? | | ?????????????????#### ?????????????????? | | ????????????????????## # % ????????????????? | | ????????????????????? ## ##???????????????? | | ????????????????????#!% #?# #????????????????? | | ???????????????????? = #??# #????????????????? | | ??????????????????? # ??? #????????????????? | | ??????????????????? # ??? #????????????????? | | ?????????????????? ???? ????????????????? | | ????????????????? ? # ????####???????????????? | | ?????????????????? ?# ? ???????????????????????? | | ?????????????????????# ? #???????????????????????? | | ?????????????????????? ? ????????????????????????? | | ?????????????????????????????????????????????????? | | ?????????????????????????????????????????????????? | | ?????????????????????????????????????????????????? | | ?????????????????????????????????????????????????? | | ?????????????????????????????????????????????????? | | ?????????????????????????????????????????????????? | | ?????????????????????????????????????????????????? | | ?????????????????????????????????????????????????? | | ?????????????????????????????????????????????????? | +----------------------------------------------------+ Best States ------------- Heat Dissipation 25 Energy Generation 10 Energy Capacity 250 Matter Stores 300 Matter Capacity 300 Sight Range 16 Terrain Scan Density 10 Evasion (%) 44 Targeting Accuracy 5 Item Schematics ----------------- None Robot Schematics ------------------ None Fabricated ------------ Nothing Alien Tech Used ----------------- None Achievements -------------- None Challenges ------------ None Game ------ Seed gottagofast Manual? 1 Play Time 00:05:32 Cumulative 155.5 hours Start 2024.06.02 @ 16:26:09 End 2024.06.02 @ 16:31:14 Sessions 1 Manual Loads 0 Difficulty Rogue Special Mode None Game No. 150 Rogue 150 Adventurer 0 Explorer 0 Win Type - Total 9 Types 8/0/0/1/0/0/0/0/0 Lore% 67 Gallery% 78 Achievement% 64 Wizard Run 0 Options --------- Layout 1 ASCII 0 Keyboard 0 Movement Numpad Keybinds 0 Fullscreen 1 Font 24/Smallcaps Map View 50x35 Zoom Use 0% Tactical HUD 1 Map Filters NONE Filters NONE Steam 1 RUN: 925a1493-c69f-4be0-85c6-e49f07805343